bitfinex/quotes_BTCUSD_20220202
["timestamp","ask_amount","ask_price","bid_price","bid_amount"]
[1643785106518,0.0200873,38278.0,38271.0,0.0522]
[1643785106717,0.00112932,38276.0,38271.0,0.0522]
[1643785106918,0.00112932,38276.0,38275.0,0.27696326]
[1643785107118,0.00112932,38276.0,38271.0,0.0522]
[1643785107521,0.00112932,38276.0,38271.0,0.31072546]
[1643785107720,0.01,38279.0,38271.0,0.0522]
[1643785107919,0.00112933,38275.0,38271.0,0.31072546]
[1643785108119,0.00112933,38275.0,38272.0,0.351812]
[1643785108321,0.00112933,38275.0,38273.0,0.0522]
[1643785108523,0.00112933,38275.0,38274.0,0.351812]
[1643785108749,0.01,38279.0,38274.0,1.104012]
[1643785108954,0.01,38279.0,38274.0,0.7522]
[1643785109150,0.01,38279.0,38275.0,1.051812]
[1643785109151,0.00112966,38276.0,38275.0,1.051812]
[1643785109351,0.005,38290.0,38276.0,0.6]
[1643785109555,0.065308,38286.0,38285.0,0.653]
[1643785109751,0.01451711,38289.0,38285.0,0.653]
[1643785109752,0.01451711,38289.0,38285.0,1.51351746]
[1643785109954,0.01451711,38289.0,38287.0,0.27547866]
[1643785110153,0.01,38295.0,38289.0,0.6]
[1643785110354,0.01,38295.0,38291.0,0.26208947]
[1643785110554,0.005,38302.0,38292.0,0.404012]
[1643785110751,0.005,38302.0,38293.0,0.35852546]
[1643785110952,0.005,38304.0,38294.0,0.351812]
[1643785111151,0.005,38307.0,38294.0,1.057012]
[1643785111354,0.005,38307.0,38296.0,0.26599729]
[1643785111552,0.005,38308.0,38297.0,1.10499289]
[1643785111753,0.005,38308.0,38298.0,0.6]
[1643785111952,0.01,38309.0,38298.0,1.30548868]
[1643785112153,0.01,38309.0,38298.0,2.10848868]
[1643785112603,0.00126203,38300.0,38298.0,2.10848868]
[1643785112802,0.00126203,38300.0,38298.0,1.207012]
[1643785113002,0.00126203,38300.0,38292.0,0.42]
[1643785113203,0.00126203,38300.0,38296.0,0.653]
[1643785113401,0.00126203,38300.0,38292.0,0.42]
[1643785113601,0.005,38305.0,38292.0,0.42]
[1643785114001,0.01126204,38299.0,38297.0,0.07519832]
[1643785114202,0.01626204,38299.0,38297.0,0.07519832]
[1643785114402,0.01332089,38299.0,38297.0,0.07519832]
[1643785114802,0.01205885,38299.0,38297.0,0.12519832]
[1643785115805,0.00705885,38299.0,38297.0,0.12519832]
[1643785117649,0.00705885,38299.0,38297.0,0.05]
[1643785117853,0.00705885,38299.0,38289.0,0.15]
[1643785118051,0.01205885,38299.0,38287.0,0.31099466]
[1643785118349,0.27071834,38295.0,38287.0,0.31099466]
[1643785118549,0.005,38294.0,38289.0,0.29109994]
[1643785119149,0.005,38294.0,38291.0,0.1045037]
[1643785120004,0.00626211,38294.0,38291.0,0.1045037]
[1643785120202,0.00126211,38294.0,38291.0,0.1045037]
[1643785120602,0.00126211,38294.0,38291.0,0.1545037]
[1643785120803,0.03054075,38299.0,38291.0,0.1545037]
[1643785121003,0.03054075,38299.0,38298.0,0.29293255]
[1643785121004,0.02554075,38299.0,38298.0,0.29293255]
[1643785121406,0.00705885,38299.0,38298.0,0.29293255]
[1643785122702,0.00705885,38299.0,38298.0,0.3741976]
[1643785122905,0.00705885,38299.0,38298.0,0.4241976]
[1643785124857,0.00705885,38299.0,38298.0,0.3741976]
[1643785125461,0.00705885,38299.0,38298.0,0.37411213]
[1643785126061,0.00332231,38303.0,38298.0,0.37411213]
[1643785127062,0.00332231,38303.0,38298.0,0.08126505]
[1643785127261,0.06861131,38303.0,38298.0,0.08126505]
[1643785127500,0.11861131,38303.0,38298.0,0.08126505]
[1643785127901,0.11861131,38303.0,38291.0,0.2901545]
[1643785127902,0.34873262,38303.0,38291.0,0.2901545]
[1643785128103,0.065291,38301.0,38291.0,0.3401545]
[1643785128300,0.25426616,38300.0,38291.0,0.3401545]
[1643785128500,0.05,38300.0,38291.0,0.3401545]
[1643785128698,0.065291,38301.0,38291.0,0.3401545]
[1643785128899,0.05,38300.0,38291.0,0.3401545]
[1643785129503,0.23766781,38294.0,38291.0,0.3401545]
[1643785129698,0.05,38300.0,38292.0,0.08123724]
[1643785130599,0.24394963,38299.0,38292.0,0.08123724]
[1643785130801,0.25663877,38294.0,38292.0,0.08123724]
[1643785131000,0.25663877,38294.0,38291.0,0.3401545]
[1643785131247,0.25663877,38294.0,38288.0,0.06528973]
[1643785131248,0.23395957,38293.0,38288.0,0.06528973]
[1643785131453,0.23395957,38293.0,38285.0,0.00099734]
[1643785131454,0.26032788,38293.0,38285.0,0.00099734]
[1643785131649,0.26032788,38293.0,38280.0,0.47]
[1643785131949,0.26032788,38293.0,38287.0,0.07647909]
[1643785131950,0.0522,38292.0,38287.0,0.07647909]
[1643785132349,0.0522,38292.0,38287.0,0.36673126]
[1643785133152,0.1022,38292.0,38287.0,0.36673126]
[1643785133552,0.1022,38292.0,38285.0,0.22382489]
[1643785133754,0.27606588,38291.0,38285.0,0.22382489]
[1643785133954,0.065304,38293.0,38285.0,0.22282755]
[1643785133955,0.23024591,38289.0,38285.0,0.22282755]
[1643785134154,0.23024591,38289.0,38285.0,0.22382489]
[1643785134753,0.23024591,38289.0,38285.0,0.54710242]
[1643785135003,0.23024591,38289.0,38288.0,0.0741681]
[1643785135203,0.0522,38290.0,38288.0,0.0741681]
[1643785135401,0.0522,38290.0,38285.0,0.27382489]
[1643785135603,0.1,38286.0,38275.0,0.1]
[1643785135803,1.02609003,38289.0,38272.0,0.05]
[1643785135804,0.31359194,38285.0,38272.0,0.05]
[1643785136006,0.31359194,38285.0,38271.0,0.0011]
[1643785136007,0.0522,38284.0,38271.0,0.0011]
[1643785136201,0.26139194,38283.0,38271.0,0.0011]
[1643785136403,0.0522,38282.0,38271.0,0.0011]
[1643785136702,0.26139194,38281.0,38275.0,0.08856858]
[1643785137001,0.182872,38280.0,38275.0,0.08856858]
[1643785137202,0.248207,38280.0,38275.0,0.08856858]
[1643785137400,0.298207,38280.0,38275.0,0.08856858]
[1643785137802,0.298207,38280.0,38276.0,0.25257004]
[1643785137803,0.117535,38280.0,38276.0,0.25257004]
[1643785138003,0.0522,38280.0,38276.0,0.25257004]
[1643785138403,0.117525,38280.0,38276.0,0.25257004]
[1643785138858,0.26973494,38279.0,38276.0,0.25257004]
[1643785139057,0.0522,38279.0,38276.0,0.25257004]
[1643785140260,0.0522,38279.0,38276.0,0.25356263]
[1643785141062,0.0522,38279.0,38277.0,0.21072807]
[1643785141461,0.0522,38279.0,38278.0,0.348024]
[1643785142504,0.33182852,38283.0,38278.0,0.348024]
[1643785142505,0.05,38282.0,38278.0,0.348024]
[1643785142704,0.38182852,38283.0,38278.0,0.348024]
[1643785143105,0.115322,38283.0,38278.0,0.348024]
[1643785143305,0.05,38282.0,38278.0,0.348024]
[1643785143809,0.05,38282.0,38281.0,0.08979634]
[1643785144408,0.04968577,38282.0,38281.0,0.08979634]
[1643785150205,0.130645,38287.0,38281.0,0.08979634]
[1643785150206,0.065317,38288.0,38281.0,0.08979634]
[1643785151008,0.065317,38288.0,38286.0,0.26636342]
[1643785151208,0.51585274,38292.0,38286.0,0.26636342]
[1643785151209,0.01801063,38287.0,38286.0,0.26636342]
[1643785152008,0.33503174,38292.0,38286.0,0.26636342]
[1643785152209,0.33503174,38292.0,38287.0,0.07848493]
[1643785152608,0.40311903,38292.0,38287.0,0.07848493]
[1643785152908,0.38503174,38292.0,38287.0,0.07848493]
[1643785153107,0.45034074,38292.0,38287.0,0.07848493]
[1643785153507,0.45034074,38292.0,38286.0,0.16024386]
[1643785154159,0.180618,38292.0,38289.0,0.29118326]
[1643785154357,0.05,38292.0,38289.0,0.29118326]
[1643785154557,0.384,38296.0,38289.0,0.34118326]
[1643785154755,0.065299,38298.0,38289.0,0.34118326]
[1643785154756,0.01943709,38293.0,38289.0,0.34118326]
[1643785154956,0.00126527,38293.0,38290.0,0.25731548]
[1643785155158,0.00126527,38293.0,38292.0,0.66402619]
[1643785155358,0.00126527,38293.0,38292.0,1.02809801]
[1643785155558,0.00126527,38293.0,38292.0,0.67809801]
[1643785155759,0.32762233,38306.0,38292.0,0.77219274]
[1643785155957,0.00126527,38294.0,38293.0,0.5521802]
[1643785156158,0.00126527,38294.0,38293.0,0.51213057]
[1643785156358,0.00126527,38294.0,38293.0,0.21213057]
[1643785156958,0.27959823,38299.0,38292.0,0.50812092]
[1643785157160,0.00126526,38295.0,38292.0,0.50812092]
[1643785157605,0.00126526,38295.0,38293.0,0.2486484]
[1643785158004,0.130578,38302.0,38293.0,0.2486484]
[1643785158204,0.130578,38302.0,38299.0,0.08641563]
[1643785158407,0.130578,38302.0,38293.0,0.24961294]
[1643785158408,0.13563826,38302.0,38293.0,0.24961294]
[1643785158605,0.23845975,38298.0,38293.0,0.46844837]
[1643785158806,0.23845975,38298.0,38293.0,0.47160707]
[1643785159007,0.13563826,38302.0,38293.0,0.22107577]
[1643785159008,0.07034826,38302.0,38293.0,0.22107577]
[1643785159209,0.01945844,38300.0,38293.0,0.47428753]
[1643785159411,0.01945844,38300.0,38293.0,0.47003208]
[1643785159608,0.01945844,38300.0,38293.0,0.22107577]
[1643785159609,0.00126521,38299.0,38293.0,0.22107577]
[1643785160009,0.00126521,38299.0,38297.0,0.09514793]
[1643785160411,0.115288,38302.0,38292.0,0.31402619]
[1643785160611,0.115288,38302.0,38292.0,0.05]
[1643785160911,0.115288,38302.0,38288.0,0.41062856]
[1643785160912,0.115288,38302.0,38289.0,0.34118326]
[1643785161555,0.25228175,38296.0,38288.0,0.31062856]
[1643785161756,0.115302,38295.0,38286.0,0.2711261]
[1643785162555,0.115302,38295.0,38287.0,0.33954112]
[1643785162556,0.065303,38294.0,38287.0,0.33954112]
[1643785162758,0.02103985,38297.0,38287.0,0.07891256]
[1643785162960,0.05,38298.0,38287.0,0.07891256]
[1643785163158,0.00126699,38293.0,38287.0,0.12891256]
[1643785163358,0.00126699,38293.0,38288.0,0.351812]
[1643785163558,0.00126699,38293.0,38292.0,0.24392213]
[1643785163758,0.00126699,38293.0,38292.0,0.50395444]
[1643785163959,0.00126699,38293.0,38292.0,0.24392213]
[1643785164159,0.23961706,38296.0,38293.0,0.07919607]
[1643785164359,0.00126699,38294.0,38293.0,0.07919607]
[1643785165103,0.23961706,38296.0,38293.0,0.07919607]
[1643785165104,0.23788405,38296.0,38293.0,0.07919607]
[1643785165504,0.00126698,38295.0,38293.0,0.07919607]
[1643785166503,0.23788405,38296.0,38293.0,0.07919607]
[1643785166705,0.23915261,38296.0,38293.0,0.07919607]
[1643785167505,0.23915261,38296.0,38293.0,0.02419607]
[1643785167707,0.23788405,38296.0,38293.0,0.02419607]
[1643785167908,0.2391526,38296.0,38293.0,0.02419607]
[1643785168509,0.00126855,38296.0,38293.0,0.02419607]
[1643785168951,0.08369694,38298.0,38293.0,0.02419607]
[1643785169152,0.00126855,38296.0,38293.0,0.02419607]
[1643785169353,0.24058156,38295.0,38293.0,0.02419607]
[1643785169752,0.29058156,38295.0,38293.0,0.02419607]
[1643785170453,0.29058156,38295.0,38289.0,0.00099857]
[1643785170653,0.065303,38294.0,38289.0,0.00099857]
[1643785171255,0.065303,38294.0,38285.0,0.24555926]
[1643785171455,0.065303,38294.0,38292.0,0.08433574]
[1643785171654,0.065303,38294.0,38289.0,0.00099857]
[1643785172255,0.065303,38294.0,38290.0,0.27444719]
[1643785173403,0.0872728,38294.0,38290.0,0.27444719]
[1643785174002,0.0872728,38294.0,38291.0,0.28364642]
[1643785174204,0.065303,38294.0,38290.0,0.27444719]
[1643785174403,0.065303,38294.0,38293.0,0.09105756]
[1643785174604,0.30588556,38295.0,38290.0,0.27444719]
[1643785174804,0.00126852,38296.0,38290.0,0.27444719]
[1643785175006,0.065297,38297.0,38291.0,0.25002003]
[1643785175307,0.00126853,38296.0,38291.0,0.25002003]
[1643785175805,0.00126853,38296.0,38295.0,0.25922459]
[1643785176004,0.00126853,38296.0,38292.0,0.09581546]
[1643785176255,0.00591552,38302.0,38293.0,0.30232484]
[1643785176256,0.00126854,38297.0,38293.0,0.30232484]
[1643785176856,0.00126854,38297.0,38292.0,0.24581546]
[1643785177255,0.00591552,38302.0,38292.0,0.24581546]
[1643785177457,0.00126855,38296.0,38295.0,0.27056804]
[1643785177657,0.00126855,38296.0,38295.0,0.58710273]
[1643785178056,0.00126855,38296.0,38295.0,0.31653469]
[1643785178256,0.00126855,38296.0,38295.0,0.3979948]
[1643785178658,0.00126855,38296.0,38295.0,0.3479948]
[1643785178858,0.00126855,38296.0,38295.0,0.08146011]
[1643785179459,0.25051415,38296.0,38295.0,0.08146011]
[1643785180104,0.25051415,38296.0,38293.0,0.22252691]
[1643785180303,0.25051415,38296.0,38289.0,0.00099857]
[1643785180507,0.25019975,38296.0,38289.0,0.00099857]
[1643785180903,0.25019975,38296.0,38289.0,0.21089028]
[1643785181504,0.25019975,38296.0,38289.0,0.46001851]
[1643785182104,0.25019975,38296.0,38294.0,0.08312742]
[1643785182304,0.00095415,38296.0,38294.0,0.13312742]
[1643785182804,0.00095415,38296.0,38294.0,0.08312742]
[1643785183405,0.00095415,38296.0,38294.0,0.13312742]
[1643785184457,0.065298,38298.0,38294.0,0.13312742]
[1643785185360,0.20585356,38297.0,38294.0,0.08312742]
[1643785185560,0.20585356,38297.0,38294.0,0.13312742]
[1643785185762,0.20585356,38297.0,38294.0,0.08312742]
[1643785186159,0.20585356,38297.0,38294.0,0.13312742]
[1643785186359,0.065298,38298.0,38294.0,0.13312742]
[1643785186560,0.065298,38298.0,38295.0,0.27516968]
[1643785189001,0.065298,38298.0,38290.0,0.06529598]
[1643785189205,0.41497612,38297.0,38286.0,0.33543868]
[1643785189403,0.065307,38294.0,38286.0,0.33543868]
[1643785189702,0.065307,38292.0,38286.0,0.33543868]
[1643785190101,0.21249798,38290.0,38289.0,0.30072293]
[1643785190303,0.065307,38292.0,38289.0,0.30072293]
[1643785190803,0.065307,38292.0,38291.0,0.08504472]
[1643785191006,0.29929041,38292.0,38291.0,0.08504472]
[1643785191254,0.065307,38292.0,38291.0,0.03004472]
[1643785191455,0.27351164,38292.0,38291.0,0.03004472]
[1643785191654,0.065306,38293.0,38291.0,0.03004472]
[1643785192056,0.0522,38294.0,38291.0,0.03004472]
[1643785193659,0.0522,38294.0,38291.0,0.27261111]
[1643785194458,0.0522,38294.0,38291.0,0.33790779]
[1643785194755,0.20222691,38296.0,38291.0,0.33790779]
[1643785195306,0.26752691,38296.0,38291.0,0.33790779]
[1643785195505,0.0653,38296.0,38291.0,0.33790779]
[1643785195706,0.24089168,38298.0,38291.0,0.38790779]
[1643785195707,0.00126887,38298.0,38291.0,0.38790779]
[1643785195906,0.00126887,38298.0,38292.0,0.63458636]
[1643785196106,0.1214,38302.0,38293.0,0.05]
[1643785196504,0.32762233,38303.0,38293.0,0.05]
[1643785196505,0.0012689,38298.0,38293.0,0.05]
[1643785196705,0.0012689,38298.0,38297.0,0.28779839]
[1643785196906,0.0012689,38298.0,38297.0,0.49276469]
[1643785197107,0.0012689,38298.0,38297.0,0.54276469]
[1643785197507,0.02141316,38303.0,38297.0,0.54276469]
[1643785197705,0.0012689,38299.0,38297.0,0.54276469]
[1643785197906,0.0012689,38299.0,38297.0,0.05]
[1643785198106,0.0012689,38299.0,38296.0,0.11528247]
[1643785198307,0.0012689,38299.0,38296.0,0.06528247]
[1643785198505,0.0012689,38299.0,38297.0,0.10174175]
[1643785198753,0.0012689,38299.0,38297.0,0.15174175]
[1643785199752,0.065289,38302.0,38297.0,0.15174175]
[1643785199954,0.25052848,38301.0,38297.0,0.15174175]
[1643785200154,0.25052848,38301.0,38297.0,0.10174175]
[1643785200955,0.065289,38302.0,38297.0,0.10174175]
[1643785201156,0.13058,38302.0,38297.0,0.10174175]
[1643785201755,0.45820233,38302.0,38297.0,0.10174175]
[1643785201957,0.09692809,38300.0,38297.0,0.10174175]
[1643785202157,0.09692809,38300.0,38293.0,0.05]
[1643785202414,0.065294,38299.0,38293.0,0.05]
[1643785202807,0.065294,38300.0,38295.0,0.2909888]
[1643785203307,0.065294,38300.0,38298.0,0.08838627]
[1643785203708,0.00126824,38299.0,38298.0,0.08838627]
[1643785204709,0.130577,38302.0,38298.0,0.08838627]
[1643785204910,0.00126823,38300.0,38298.0,0.13838627]
[1643785205309,0.00126823,38300.0,38298.0,0.08838627]
[1643785205609,0.00126823,38300.0,38289.0,0.11690015]
[1643785205610,0.065294,38299.0,38289.0,0.11690015]
[1643785205810,0.2336973,38301.0,38289.0,0.11690015]
[1643785205811,0.25290978,38298.0,38289.0,0.1159]
[1643785206011,0.57357379,38301.0,38289.0,0.00100015]
[1643785206012,1.01327514,38300.0,38289.0,0.00100015]
[1643785206253,0.2710377,38292.0,38289.0,0.00100015]
[1643785206451,0.3363427,38292.0,38289.0,0.00100015]
[1643785206653,0.03163409,38290.0,38289.0,0.09862201]
[1643785207052,0.03163409,38290.0,38289.0,0.09762186]
[1643785208752,0.03163409,38290.0,38288.0,0.00100018]
[1643785208956,0.4516477,38292.0,38288.0,0.00100018]
[1643785209157,0.4,38289.0,38288.0,0.00100018]
[1643785209353,0.4,38289.0,38286.0,6e-05]
[1643785209354,0.5022,38289.0,38286.0,6e-05]
[1643785209555,0.5022,38289.0,38288.0,0.12882936]
[1643785209754,0.167519,38289.0,38288.0,0.22469975]
[1643785210014,0.232838,38289.0,38288.0,0.22469975]
[1643785210213,0.232838,38289.0,38288.0,0.12882936]
[1643785210612,0.26447209,38289.0,38288.0,0.12882936]
[1643785211114,0.19915309,38289.0,38288.0,0.12882936]
[1643785211316,0.14915309,38289.0,38288.0,0.12882936]
[1643785211615,0.09695309,38289.0,38288.0,0.12882936]
[1643785214155,0.03163409,38289.0,38288.0,0.12882936]
[1643785214353,0.03163409,38289.0,38288.0,0.25765872]
[1643785215858,0.03163409,38289.0,38288.0,0.12882936]
[1643785216159,0.03163409,38289.0,38288.0,0.25757621]
[1643785216759,0.03157409,38289.0,38288.0,0.25757621]
[1643785216959,0.065306,38291.0,38288.0,0.25757621]
[1643785218006,0.065306,38291.0,38288.0,0.25857639]
[1643785218607,0.03157409,38290.0,38288.0,0.25857639]
[1643785219009,0.065306,38291.0,38288.0,0.25757621]
[1643785219510,0.065306,38291.0,38288.0,0.12874685]
[1643785219711,0.065306,38291.0,38290.0,0.12882936]
[1643785220009,0.5822777,38292.0,38290.0,0.12882936]
[1643785220209,0.03157409,38291.0,38290.0,0.12882936]
[1643785220710,0.03157409,38291.0,38290.0,0.22298936]
[1643785221456,0.03157409,38291.0,38290.0,0.974891]
[1643785221656,0.03157409,38291.0,38290.0,1.2234334]
[1643785221956,0.03157409,38291.0,38290.0,1.3234334]
[1643785222158,0.03157409,38291.0,38290.0,1.2792734]
[1643785222360,0.06656215,38298.0,38290.0,1.2792734]
[1643785222559,1.19023126,38306.0,38290.0,1.2792734]
[1643785222560,0.32768479,38305.0,38291.0,0.6]
[1643785222759,0.1765359,38302.0,38292.0,0.25815232]
[1643785222957,0.32768479,38305.0,38292.0,0.25815232]
[1643785222958,0.48799774,38304.0,38292.0,0.02628]
[1643785223158,0.48799774,38304.0,38294.0,0.06528]
[1643785223358,0.48799774,38304.0,38299.0,0.2547917]
[1643785223359,0.26391296,38304.0,38299.0,0.2547917]
[1643785223958,0.00126819,38303.0,38299.0,0.45937342]
[1643785225008,0.065283,38304.0,38302.0,0.49971222]
[1643785225206,0.0012682,38303.0,38302.0,0.12882936]
[1643785225906,0.0012682,38303.0,38302.0,0.20236159]
[1643785226313,0.065283,38304.0,38302.0,0.20236159]
[1643785226509,0.00126818,38304.0,38302.0,0.25236159]
[1643785226807,0.00126818,38304.0,38303.0,0.68094685]
[1643785227010,0.00126818,38304.0,38303.0,1.03275885]
[1643785227208,0.00126818,38304.0,38303.0,1.13275885]
[1643785227407,0.01,38309.0,38303.0,1.22861885]
[1643785227709,0.01,38309.0,38308.0,0.26728175]
[1643785227912,0.01,38309.0,38308.0,0.31948175]
[1643785228756,0.01,38309.0,38308.0,0.39835964]
[1643785229957,0.01,38309.0,38308.0,0.61218233]
[1643785229958,0.005,38309.0,38308.0,0.61218233]
[1643785230363,0.005,38309.0,38308.0,0.74101169]
[1643785231763,0.005002,38317.0,38309.0,0.3]
[1643785231965,0.2291848,38319.0,38310.0,0.31035232]
[1643785231966,0.01,38319.0,38310.0,0.31035232]
[1643785232162,0.01,38319.0,38313.0,0.01832796]
[1643785232420,0.01,38319.0,38314.0,0.404012]
[1643785232612,0.01,38319.0,38314.0,0.454012]
[1643785232811,0.01,38319.0,38315.0,0.64645067]
[1643785233015,0.01,38319.0,38316.0,0.404012]
[1643785233213,0.01,38329.0,38318.0,0.6]
[1643785233415,0.01,38329.0,38323.0,0.25249262]
[1643785233614,0.00510254,38327.0,38319.0,0.1022]
[1643785233813,0.00510254,38327.0,38319.0,0.0522]
[1643785234216,0.00510254,38327.0,38323.0,0.28046624]
[1643785234414,0.00010254,38327.0,38325.0,0.07976727]
[1643785234614,0.01,38329.0,38325.0,0.07976727]
[1643785235417,0.01,38329.0,38325.0,0.37351008]
[1643785235619,0.01,38329.0,38327.0,0.12882936]
[1643785235817,0.005,38329.0,38327.0,0.17882936]
[1643785236019,0.005,38329.0,38327.0,0.47756275]
[1643785236264,0.710374,38338.0,38327.0,0.47756275]
[1643785236265,0.01,38339.0,38328.0,0.65700366]
[1643785236462,0.01,38339.0,38329.0,0.351812]
[1643785236662,0.01,38339.0,38330.0,0.0522]
[1643785236864,0.01,38339.0,38330.0,0.40920366]
[1643785237063,0.27984168,38337.0,38335.0,0.26339568]
[1643785237263,0.27984168,38337.0,38335.0,0.08684058]
[1643785237461,0.01,38339.0,38335.0,0.08684058]
[1643785237861,0.01,38339.0,38331.0,0.11741922]
[1643785238062,0.01,38339.0,38331.0,0.0522]
[1643785238464,0.22566794,38334.0,38331.0,0.0522]
[1643785238664,0.07151391,38339.0,38331.0,0.0522]
[1643785238865,0.05628191,38339.0,38331.0,0.0522]
[1643785239264,0.00628191,38339.0,38329.0,0.25045916]
[1643785239463,0.00628191,38339.0,38332.0,0.08072341]
[1643785239665,0.065235,38338.0,38332.0,0.08072341]
[1643785239915,0.20189436,38334.0,38332.0,0.08072341]
[1643785240110,0.20189436,38334.0,38329.0,0.47263954]
[1643785240310,0.20189436,38334.0,38329.0,0.25045916]
[1643785240512,0.20189436,38334.0,38327.0,0.12882936]
[1643785240710,0.20189436,38334.0,38315.0,0.4983]
[1643785240711,0.065246,38330.0,38315.0,0.4983]
[1643785240913,0.065246,38330.0,38329.0,0.12882936]
[1643785241109,0.065246,38330.0,38329.0,0.22454479]
[1643785241710,0.117446,38330.0,38329.0,0.22454479]
[1643785242310,0.0522,38330.0,38329.0,0.22454479]
[1643785242610,0.0522,38330.0,38329.0,0.35329164]
[1643785243415,0.4522,38330.0,38329.0,0.25757621]
[1643785243665,0.84288056,38330.0,38328.0,0.00106223]
[1643785243863,0.13052,38327.0,38309.0,0.20046]
[1643785244066,0.43145162,38326.0,38309.0,0.20046]
[1643785244263,0.43145162,38326.0,38308.0,0.1187]
[1643785244264,0.1,38325.0,38308.0,0.1187]
[1643785244461,0.1,38325.0,38318.0,0.08652133]
[1643785244462,0.065265,38322.0,38318.0,0.08652133]
[1643785244662,0.26671233,38319.0,38318.0,0.08652133]
[1643785244961,0.26671233,38319.0,38315.0,0.23417817]
[1643785244962,0.56089674,38319.0,38315.0,0.23417817]
[1643785245161,0.69142874,38319.0,38315.0,0.23417817]
[1643785246762,0.56089674,38319.0,38315.0,0.23417817]
[1643785247416,0.56089674,38319.0,38316.0,0.07859992]
[1643785247908,0.50869674,38319.0,38316.0,0.07859992]
[1643785248110,0.30059992,38321.0,38316.0,0.07965717]
[1643785248410,0.0522,38320.0,38316.0,0.07965717]
[1643785249011,0.02108059,38322.0,38316.0,0.07859992]
[1643785249211,0.02108059,38322.0,38319.0,0.20475758]
[1643785250010,0.00591153,38329.0,38319.0,0.20475758]
[1643785250410,0.00591153,38329.0,38328.0,0.08592965]
[1643785251857,0.23598725,38329.0,38328.0,0.08592965]
[1643785252057,0.23325641,38329.0,38328.0,0.08592965]
[1643785252258,0.23495903,38329.0,38328.0,0.08592965]
[1643785252461,0.00591153,38329.0,38328.0,0.08592965]
[1643785252959,0.00591153,38329.0,38328.0,0.35969895]
[1643785253361,0.00128215,38334.0,38328.0,0.35969895]
[1643785253362,0.24134099,38334.0,38328.0,0.35969895]
[1643785253559,0.4,38333.0,38316.0,0.85305092]
[1643785253763,0.21089758,38323.0,38316.0,0.3892]
[1643785253959,0.21089758,38323.0,38322.0,0.07790113]
[1643785254561,0.25275264,38331.0,38322.0,0.66722725]
[1643785254760,0.3766358,38335.0,38328.0,0.2969497]
[1643785255011,0.2580358,38335.0,38328.0,0.2969497]
[1643785255215,0.00075518,38333.0,38330.0,0.07396007]
[1643785255711,0.22660085,38332.0,38330.0,0.07396007]
[1643785256416,0.00128092,38333.0,38330.0,0.07396007]
[1643785257411,0.21974242,38334.0,38330.0,0.07396007]
[1643785257611,0.00128091,38333.0,38330.0,0.07396007]
[1643785258767,0.21974242,38334.0,38330.0,0.07396007]
[1643785258969,0.00128091,38333.0,38330.0,0.07396007]
[1643785259367,0.00128091,38333.0,38330.0,0.07266007]
[1643785259766,0.21974242,38334.0,38330.0,0.07266007]
[1643785259969,0.1327422,38333.0,38324.0,0.00105173]
[1643785260168,0.13402311,38333.0,38324.0,0.00105173]
[1643785260769,0.28402311,38333.0,38324.0,0.00105173]
[1643785260970,0.10371718,38327.0,38320.0,0.08927498]
[1643785261170,0.2263003,38326.0,38324.0,0.00105173]
[1643785261368,0.065254,38326.0,38324.0,0.00105173]
[1643785261583,0.38523526,38325.0,38324.0,0.00105173]
[1643785261768,0.13523526,38325.0,38324.0,0.00105173]
[1643785261969,0.065254,38326.0,38324.0,0.00105173]
[1643785262169,0.3522,38325.0,38320.0,0.08927498]
[1643785262430,0.3522,38325.0,38323.0,0.00105175]
[1643785262621,0.49429491,38325.0,38323.0,0.00105175]
[1643785262822,0.3522,38325.0,38323.0,0.00105175]
[1643785263222,0.0522,38325.0,38323.0,0.00105175]
[1643785263422,0.0522,38325.0,38320.0,0.08927498]
[1643785263623,0.0522,38325.0,38322.0,0.00105178]
[1643785263825,0.19499003,38325.0,38322.0,0.00105178]
[1643785264025,0.19499003,38325.0,38300.0,0.20951675]
[1643785264026,0.6,38322.0,38302.0,0.130512]
[1643785264229,0.065265,38320.0,38300.0,0.002]
[1643785264428,0.3102358,38319.0,38300.0,0.002]
[1643785264625,0.3602358,38319.0,38300.0,0.002]
[1643785264824,0.24154321,38310.0,38306.0,0.25470378]
[1643785265024,0.0522,38309.0,38307.0,0.08694519]
[1643785266170,0.28767563,38309.0,38307.0,0.08694519]
[1643785266366,0.28767563,38309.0,38306.0,0.25470378]
[1643785266367,0.0522,38309.0,38300.0,0.002]
[1643785266569,0.065283,38308.0,38300.0,0.002]
[1643785267368,0.065283,38308.0,38303.0,0.28307865]
[1643785267567,0.065283,38308.0,38307.0,0.08391229]
[1643785268070,0.130567,38308.0,38307.0,0.08391229]
[1643785268471,0.37673631,38308.0,38307.0,0.08391229]
[1643785268870,0.58670231,38308.0,38307.0,0.08391229]
[1643785270221,0.130567,38308.0,38307.0,0.08391229]
[1643785270421,0.0522,38313.0,38307.0,0.08391229]
[1643785270620,0.195818,38316.0,38307.0,0.08391229]
[1643785270819,0.0522,38315.0,38307.0,0.08391229]
[1643785271018,0.24530777,38314.0,38307.0,0.08391229]
[1643785271219,0.28197373,38310.0,38307.0,0.08391229]
[1643785272021,0.28197373,38310.0,38307.0,0.08495924]
[1643785272419,0.28197373,38310.0,38307.0,0.31225503]
[1643785272618,0.065274,38313.0,38307.0,0.31225503]
[1643785273019,0.22972342,38312.0,38307.0,0.31120808]
[1643785273219,0.29499842,38312.0,38308.0,0.0010469]
[1643785273420,0.065275,38312.0,38308.0,0.0010469]
[1643785273658,0.20970635,38311.0,38308.0,0.0010469]
[1643785274058,0.25970635,38311.0,38308.0,0.0010469]
[1643785274257,0.25970635,38311.0,38307.0,0.08391229]
[1643785274460,0.25970635,38311.0,38308.0,0.00104692]
[1643785274659,0.25970635,38311.0,38309.0,0.24682124]
[1643785274858,0.30970635,38311.0,38309.0,0.24682124]
[1643785275058,0.30970635,38311.0,38308.0,0.00104692]
[1643785275460,0.30970635,38311.0,38307.0,0.08391229]
[1643785275662,0.30970635,38311.0,38308.0,0.00104692]
[1643785275861,0.25970635,38311.0,38308.0,0.00104692]
[1643785276661,0.25970635,38311.0,38307.0,0.08391229]
[1643785276863,0.25970635,38311.0,38308.0,0.00104692]
[1643785277263,0.065276,38310.0,38308.0,0.00104692]
[1643785277514,0.06527456,38313.0,38308.0,0.00104692]
[1643785277712,0.01860447,38313.0,38308.0,0.00104692]
[1643785277915,0.01860447,38313.0,38309.0,0.0522]
[1643785278112,0.01860447,38313.0,38310.0,0.351812]
[1643785278313,0.01860447,38313.0,38312.0,0.91115262]
[1643785278514,0.662356,38321.0,38312.0,0.91115262]
[1643785278714,0.1147,38329.0,38324.0,0.09534931]